fUSD/lending_fUSD_20260615
["ID","MTS","AMOUNT","RATE_DAILY","PERIOD"]
[425072537,1781457047000,-300.0,0.00014999,2]
[425072536,1781457047000,-300.0,0.00014999,2]
[425072534,1781457047000,-300.0,0.00014999,2]
[425072541,1781457047000,-937065.15913261,0.00015,2]
[425072540,1781457047000,-666.0,0.00014999,2]
[425072542,1781457047000,-1544.22,0.00015,2]
[425072533,1781457047000,-300.0,0.00014999,2]
[425072543,1781457047000,-14291835.37415096,0.00015,2]
[425072495,1781457047000,-1077.43,0.00014999,2]
[425072522,1781457047000,-1020.95,0.00014999,2]
[425072519,1781457047000,-1020.95,0.00014999,2]
[425072473,1781457047000,-311.38683463,0.00014999,2]
[425072518,1781457047000,-1020.95,0.00014999,2]
[425072496,1781457047000,-1077.43,0.00014999,2]
[425072494,1781457047000,-1077.43,0.00014999,2]
[425072499,1781457047000,-1077.62450446,0.00014999,2]
[425072498,1781457047000,-1077.43,0.00014999,2]
[425072500,1781457047000,-779.21,0.00014999,2]
[425072502,1781457047000,-779.21,0.00014999,2]
[425072501,1781457047000,-779.21,0.00014999,2]
[425072503,1781457047000,-779.21,0.00014999,2]
[425072506,1781457047000,-779.21,0.00014999,2]
[425072508,1781457047000,-2407.68,0.00014999,2]
[425072505,1781457047000,-779.21,0.00014999,2]
[425072492,1781457047000,-1077.43,0.00014999,2]
[425072504,1781457047000,-779.21,0.00014999,2]
[425072517,1781457047000,-1020.95,0.00014999,2]
[425072509,1781457047000,-2407.68,0.00014999,2]
[425072515,1781457047000,-2407.70438124,0.00014999,2]
[425072516,1781457047000,-1020.95,0.00014999,2]
[425072512,1781457047000,-2407.68,0.00014999,2]
[425072514,1781457047000,-2407.68,0.00014999,2]
[425072520,1781457047000,-1020.95,0.00014999,2]
[425072510,1781457047000,-2407.68,0.00014999,2]
[425072511,1781457047000,-2407.68,0.00014999,2]
[425072513,1781457047000,-2407.68,0.00014999,2]
[425072507,1781457047000,-779.30531058,0.00014999,2]
[425072544,1781457048000,-16827.036363,0.00015,2]
[425072546,1781457048000,-4481.03597986,0.00015,2]
[425072547,1781457048000,-99856.13337425,0.00015,2]
[425072548,1781457048000,-1278.46,0.00015,2]
[425072545,1781457048000,-2373.0568167,0.00015,2]
[425072549,1781457049000,-166.66,0.00010959,2]
[425072550,1781457049000,-166.66,0.00011068,2]
[425072551,1781457049000,-166.66,0.00011178,2]
[425072552,1781457049000,-165.02,0.00011288,2]
[425072553,1781457049000,-1.64,0.00011288,2]
[425072554,1781457049000,-166.66,0.00011397,2]
[425072556,1781457049000,-500.0,0.00014677,2]
[425072555,1781457049000,-166.66,0.00011507,2]
[425072557,1781457049000,-500.0,0.00014677,2]
[425072559,1781457049000,-500.0,0.00014677,2]
[425072558,1781457049000,-500.0,0.00014677,2]
[425072561,1781457049000,-500.0,0.00014677,2]
[425072560,1781457049000,-500.0,0.00014677,2]
[425072562,1781457049000,-500.0,0.00014677,2]
[425072563,1781457049000,-187.82072455,0.000149,2]
[425072572,1781457049000,-545.59881329,0.00014273,2]
[425072573,1781457049000,-615.55551412,0.00014273,2]
[425072571,1781457049000,-765.6,0.00014273,2]
[425072569,1781457049000,-166.27496572,0.00013698,2]
[425072570,1781457049000,-173.10423444,0.00014273,2]
[425072568,1781457049000,-5900540.76038318,0.00015,2]
[425072565,1781457049000,-1000.0,0.00015,2]
[425072567,1781457049000,-1575418.11569216,0.00015,2]
[425072566,1781457049000,-7629.82586334,0.00015,2]
[425072564,1781457049000,-1095710.57552259,0.00015,2]
[425072575,1781457050000,-500.0,0.00014677,2]
[425072574,1781457050000,-696.46422258,0.00014273,2]
[425072577,1781457050000,-500.0,0.00014677,2]
[425072576,1781457050000,-500.0,0.00014677,2]
[425072579,1781457050000,-11.6737335,0.00014677,2]
[425072580,1781457050000,-500.0,0.00014677,2]
[425072581,1781457050000,-500.0,0.00014677,2]
[425072583,1781457050000,-500.0,0.00014677,2]
[425072584,1781457050000,-242.33367794,0.00014677,2]
[425072578,1781457050000,-488.3262665,0.00014677,2]
[425072582,1781457050000,-500.0,0.00014677,2]
[425072585,1781457113000,3000.0,0.0003,120]
[425072586,1781457114000,3000.0,0.0003,120]
[425072587,1781457114000,3000.0,0.0003,120]
[425072589,1781457114000,3000.0,0.0003,120]
[425072588,1781457114000,3000.0,0.0003,120]
[425072591,1781457115000,3000.0,0.0003,120]
[425072590,1781457115000,1811.98,0.0003,120]
[425072592,1781457115000,3000.0,0.0003,120]
[425072595,1781457116000,1203.0,0.0003,120]
[425072594,1781457116000,3000.0,0.0003,120]
[425072593,1781457116000,1004.99,0.0003,120]
[425072597,1781457195000,-500.0,9.639e-05,2]
[425072598,1781457213000,1001.0,0.00029041,120]
[425072599,1781457249000,-500.0,9.638e-05,2]
[425072600,1781457303000,-500.0,9.637e-05,2]
[425072602,1781457320000,298.98187693,0.0003,120]
[425072601,1781457320000,152.0,0.0003,120]
[425072604,1781457321000,152.0,0.0003,120]
[425072603,1781457321000,152.0,0.0003,120]
[425072605,1781457322000,152.0,0.0003,120]
[425072606,1781457322000,240.0,0.0003,120]
[425072608,1781457326000,152.0,0.0003,120]
[425072607,1781457326000,152.0,0.0003,120]
[425072610,1781457327000,152.0,0.0003,120]
[425072609,1781457327000,152.0,0.0003,120]
[425072611,1781457328000,152.0,0.0003,120]
[425072613,1781457329000,152.0,0.0003,120]
[425072612,1781457329000,152.0,0.0003,120]
[425072615,1781457330000,152.0,0.0003,120]
[425072614,1781457330000,152.0,0.0003,120]
[425072616,1781457335000,151.0,0.0003,120]
[425072618,1781457337000,302.0,0.0003,120]
[425072617,1781457337000,151.0,0.0003,120]
[425072619,1781457356000,-500.0,9.637e-05,2]
[425072620,1781457410000,-500.0,9.636e-05,2]
[425072621,1781457463000,-500.0,9.636e-05,2]
[425072622,1781457517000,-150.0,9.635e-05,2]
[425072623,1781457530000,1879.49,0.00030027,120]
[425072624,1781457530000,783.12,0.00030027,120]
[425072625,1781457533000,2000.0,0.00030027,120]
[425072628,1781457533000,2000.0,0.00030027,120]
[425072627,1781457533000,2000.0,0.00030027,120]
[425072626,1781457533000,2000.0,0.00030027,120]
[425072631,1781457534000,2000.0,0.00030027,120]
[425072630,1781457534000,2000.0,0.00030027,120]
[425072629,1781457534000,2000.0,0.00030027,120]
[425072635,1781457535000,2000.0,0.00030027,120]
[425072633,1781457535000,707.41,0.00030027,120]
[425072632,1781457535000,2000.0,0.00030027,120]
[425072634,1781457535000,2000.0,0.00030027,120]
[425072639,1781457536000,2000.0,0.00030027,120]
[425072638,1781457536000,2000.0,0.00030027,120]
[425072636,1781457536000,294.75,0.00030027,120]
[425072637,1781457536000,2000.0,0.00030027,120]
[425072640,1781457537000,2000.0,0.00030027,120]
[425072641,1781457537000,2000.0,0.00030027,120]
[425072642,1781457537000,2000.0,0.00030027,120]
[425072646,1781457538000,2000.0,0.00030027,120]
[425072645,1781457538000,2000.0,0.00030027,120]
[425072644,1781457538000,2000.0,0.00030027,120]
[425072643,1781457538000,2000.0,0.00030027,120]
[425072649,1781457539000,2000.0,0.00030027,120]
[425072648,1781457539000,2000.0,0.00030027,120]
[425072647,1781457539000,2000.0,0.00030027,120]
[425072653,1781457540000,2000.0,0.00030027,120]
[425072652,1781457540000,2000.0,0.00030027,120]
[425072651,1781457540000,2000.0,0.00030027,120]
[425072650,1781457540000,569.83,0.00030027,120]
[425072656,1781457541000,2000.0,0.00030027,120]
[425072655,1781457541000,2000.0,0.00030027,120]
[425072654,1781457541000,2000.0,0.00030027,120]
[425072657,1781457542000,2000.0,0.00030027,120]
[425072658,1781457542000,2000.0,0.00030027,120]
[425072659,1781457542000,2000.0,0.00030027,120]
[425072660,1781457543000,1404.1,0.00030027,120]
[425072661,1781457570000,-500.0,9.635e-05,2]
[425072662,1781457624000,-500.0,9.635e-05,2]
[425072663,1781457627000,151.0,0.00030027,120]
[425072668,1781457631000,174.35427853,9.634e-05,2]
[425072666,1781457631000,251.84637901,9.634e-05,2]
[425072667,1781457631000,248.15362099,9.634e-05,2]
[425072665,1781457631000,248.15362099,9.634e-05,2]
[425072664,1781457631000,500.0,9.634e-05,2]
[425072670,1781457632000,500.0,9.634e-05,2]
[425072669,1781457632000,77.49210048,9.634e-05,2]
[425072671,1781457677000,-150.0,9.633e-05,2]
[425072672,1781457826000,-300.0,9.633e-05,2]
[425072673,1781457842000,1500.0,0.00030137,120]
[425072674,1781457879000,-150.0,9.632e-05,2]
[425072675,1781457883000,344.12486517,0.00010115,7]
[425072676,1781457932000,-313.2642151,8.832e-05,2]
[425072677,1781457934000,151.0,0.00030027,120]
[425072678,1781457934000,151.0,0.00030027,120]
[425072679,1781457936000,1500.0,0.00030137,120]
[425072681,1781457950000,2000.0,0.00030049,120]
[425072680,1781457950000,2000.0,0.00030049,120]
[425072682,1781457950000,1910.06,0.00030049,120]
[425072684,1781457951000,462.53,0.00030049,120]
[425072683,1781457951000,2000.0,0.00030049,120]
[425072685,1781457962000,1500.0,0.00030137,120]
[425072687,1781457986000,1500.0,0.00030137,120]
[425072686,1781457986000,-500.0,9.632e-05,2]
[425072688,1781457993000,1001.0,0.00029041,120]
[425072689,1781458004000,1500.0,0.00030137,120]
[425072690,1781458013000,1500.0,0.00030137,120]
[425072691,1781458021000,1500.0,0.00030137,120]
[425072692,1781458039000,-160.33323903,8.831e-05,2]
[425072693,1781458044000,-241.83371456,8.831e-05,2]
[425072694,1781458044000,-103.97409639,9.63e-05,2]
[425072695,1781458093000,-46.02590361,9.63e-05,2]
[425072696,1781458097000,1500.0,0.00030137,120]
[425072697,1781458103000,1500.0,0.00030137,120]
[425072698,1781458109000,2000.0,0.00030137,120]
[425072699,1781458115000,2000.0,0.00030137,120]
[425072700,1781458121000,1500.0,0.00030137,120]
[425072701,1781458129000,1500.0,0.00030137,120]
[425072702,1781458146000,-282.54135523,9.63e-05,2]
[425072703,1781458147000,2000.0,0.00030137,120]
[425072704,1781458154000,1500.0,0.00030137,120]
[425072705,1781458160000,1500.0,0.00030137,120]
[425072706,1781458169000,1874.0,0.00030137,120]
[425072707,1781458200000,-500.0,9.63e-05,2]
[425072710,1781458231000,-197.77894866,9.629e-05,2]
[425072711,1781458231000,-190.49912498,9.629e-05,2]
[425072735,1781458232000,-163.68,0.00010599,2]
[425072734,1781458232000,-300.0,0.00010595,2]
[425072733,1781458232000,-300.0,0.00010593,2]
[425072728,1781458232000,-329.02328225,9.632e-05,2]
[425072732,1781458232000,-250.0,0.00010593,2]
[425072730,1781458232000,-150.0,9.726e-05,2]
[425072731,1781458232000,-300.0,0.00010593,2]
[425072725,1781458232000,-241.22336997,9.629e-05,2]
[425072727,1781458232000,-901.45284147,9.631e-05,2]
[425072721,1781458232000,-172.04799498,9.629e-05,2]
[425072726,1781458232000,-250.0,9.631e-05,2]
[425072724,1781458232000,-62.97010629,9.629e-05,2]
[425072722,1781458232000,-122.4029251,9.629e-05,2]
[425072723,1781458232000,-377.5970749,9.629e-05,2]
[425072720,1781458232000,-356.54907992,9.629e-05,2]
[425072718,1781458232000,-309.50087502,9.629e-05,2]
[425072719,1781458232000,-143.45092008,9.629e-05,2]
[425072737,1781458232000,-305.91343841,0.0001094,2]
[425072729,1781458232000,-500.0,9.636e-05,2]
[425072736,1781458232000,-1000.0,0.000106,2]
[425072738,1781458232000,-166.66,0.00011271,2]
[425072740,1781458232000,-828.57,0.00011281,2]
[425072739,1781458232000,-150.99,0.00011281,2]
[425072755,1781458232000,-1058.14,0.00012988,2]
[425072757,1781458232000,-4031.20150791,0.00012989,2]
[425072756,1781458232000,-3105.04849209,0.00012989,2]
[425072752,1781458232000,-163.31,0.00012674,2]
[425072753,1781458232000,-358.17224649,0.00012724,2]
[425072748,1781458232000,-166.66,0.00011983,2]
[425072749,1781458232000,-6366.25,0.00012189,2]
[425072750,1781458232000,-166.66,0.0001222,2]
[425072754,1781458232000,-150.0,0.00012843,2]
[425072747,1781458232000,-166.66,0.00011746,2]
[425072751,1781458232000,-166.66,0.00012458,2]
[425072742,1781458232000,-166.66,0.00011508,2]
[425072741,1781458232000,-500.0,0.00011425,2]
[425072743,1781458232000,-223.68,0.00011554,2]
[425072758,1781458232000,-163.31,0.00013093,2]
[425072746,1781458232000,-182.03,0.0001174,2]
[425072744,1781458232000,-150.0,0.0001163,2]
[425072745,1781458232000,-385.96,0.00011635,2]
[425072793,1781458233000,-500.0,0.00013425,2]
[425072788,1781458233000,-158.46218591,0.00013425,2]
[425072785,1781458233000,-500.0,0.00013425,2]
[425072786,1781458233000,-500.0,0.00013425,2]
[425072789,1781458233000,-500.0,0.00013425,2]
[425072784,1781458233000,-500.0,0.00013425,2]
[425072791,1781458233000,-500.0,0.00013425,2]
[425072790,1781458233000,-500.0,0.00013425,2]
[425072787,1781458233000,-500.0,0.00013425,2]
[425072802,1781458233000,-592.03797201,0.00013425,2]
[425072796,1781458233000,-247.9963329,0.00013425,2]
[425072794,1781458233000,-500.0,0.00013425,2]
[425072795,1781458233000,-500.0,0.00013425,2]
[425072798,1781458233000,-500.0,0.00013425,2]
[425072797,1781458233000,-500.0,0.00013425,2]
[425072800,1781458233000,-500.0,0.00013425,2]
[425072780,1781458233000,-166.72751158,0.00013425,2]
[425072799,1781458233000,-500.0,0.00013425,2]
[425072801,1781458233000,-500.0,0.00013425,2]
[425072792,1781458233000,-500.0,0.00013425,2]
[425072782,1781458233000,-500.0,0.00013425,2]
[425072772,1781458233000,-500.0,0.00013425,2]
[425072783,1781458233000,-500.0,0.00013425,2]
[425072803,1781458233000,-150.0,0.00013425,2]
[425072759,1781458233000,-1000.0,0.00013108,2]
[425072761,1781458233000,-150.0,0.00013364,2]
[425072760,1781458233000,-200.0,0.00013257,2]
[425072763,1781458233000,-150.0,0.00013364,2]
[425072762,1781458233000,-150.0,0.00013364,2]
[425072764,1781458233000,-150.0,0.00013364,2]
[425072766,1781458233000,-1858.13,0.00013384,2]
[425072765,1781458233000,-186.27,0.00013375,2]
[425072781,1781458233000,-185.11145126,0.00013425,2]
[425072768,1781458233000,-150.0,0.00013425,2]
[425072770,1781458233000,-500.0,0.00013425,2]
[425072771,1781458233000,-204.40733021,0.00013425,2]
[425072773,1781458233000,-500.0,0.00013425,2]
[425072774,1781458233000,-500.0,0.00013425,2]
[425072775,1781458233000,-500.0,0.00013425,2]
[425072779,1781458233000,-400.37540708,0.00013425,2]
[425072777,1781458233000,-500.0,0.00013425,2]
[425072778,1781458233000,-500.0,0.00013425,2]
[425072776,1781458233000,-500.0,0.00013425,2]
[425072769,1781458233000,-150.0,0.00013425,2]
[425072805,1781458233000,-200.0,0.00013425,2]
[425072767,1781458233000,-2000.0,0.0001339,2]
[425072809,1781458233000,-616.0,0.00013425,2]
[425072832,1781458233000,-150.0,0.00013425,2]
[425072834,1781458233000,-176.84112693,0.00013501,2]
[425072833,1781458233000,-500.0,0.00013481,2]
[425072836,1781458233000,-6730.38224666,0.00013501,2]
[425072835,1781458233000,-2639.16170476,0.00013501,2]
[425072837,1781458233000,-163.31,0.00013511,2]
[425072838,1781458233000,-150.0,0.00013593,2]
[425072840,1781458233000,-500.0,0.00013597,2]
[425072839,1781458233000,-3000.0,0.00013597,2]
[425072831,1781458233000,-481.40241046,0.00013425,2]
[425072841,1781458233000,-500.0,0.00013597,2]
[425072843,1781458233000,-500.0,0.00013597,2]
[425072845,1781458233000,-500.0,0.00013597,2]
[425072844,1781458233000,-500.0,0.00013597,2]
[425072846,1781458233000,-2279.0,0.00013598,5]
[425072847,1781458233000,-8370.63889657,0.00013598,2]
[425072848,1781458233000,-12929.1318595,0.00013598,2]
[425072850,1781458233000,-1130.47906041,0.00013598,2]
[425072849,1781458233000,-1254.41808677,0.00013598,2]
[425072851,1781458233000,-508.0,0.00013598,2]
[425072842,1781458233000,-500.0,0.00013597,2]
[425072830,1781458233000,-500.0,0.00013425,2]
[425072828,1781458233000,-616.0,0.00013425,2]
[425072829,1781458233000,-638.12019549,0.00013425,2]
[425072806,1781458233000,-616.0,0.00013425,2]
[425072807,1781458233000,-616.0,0.00013425,2]
[425072808,1781458233000,-616.0,0.00013425,2]
[425072811,1781458233000,-616.0,0.00013425,2]
[425072810,1781458233000,-616.0,0.00013425,2]
[425072812,1781458233000,-616.0,0.00013425,2]
[425072815,1781458233000,-616.0,0.00013425,2]
[425072814,1781458233000,-616.0,0.00013425,2]
[425072813,1781458233000,-616.0,0.00013425,2]
[425072817,1781458233000,-616.0,0.00013425,2]
[425072820,1781458233000,-616.0,0.00013425,2]
[425072816,1781458233000,-616.0,0.00013425,2]
[425072819,1781458233000,-616.0,0.00013425,2]
[425072818,1781458233000,-616.0,0.00013425,2]
[425072822,1781458233000,-616.0,0.00013425,2]
[425072821,1781458233000,-616.0,0.00013425,2]
[425072826,1781458233000,-616.0,0.00013425,2]
[425072824,1781458233000,-616.0,0.00013425,2]
[425072825,1781458233000,-616.0,0.00013425,2]
[425072823,1781458233000,-616.0,0.00013425,2]
[425072827,1781458233000,-616.0,0.00013425,2]
[425072804,1781458233000,-150.0,0.00013425,2]
[425072867,1781458237000,-436.79223375,0.00013598,2]
[425072866,1781458237000,-160.0,9.67e-05,2]
[425072869,1781458237000,-300.0,0.00013598,2]
[425072868,1781458237000,-61098.0,0.00013598,2]
[425072891,1781458239000,-14976.96952,0.00013598,2]
[425072890,1781458239000,-31754.19848489,0.00013598,2]
[425072912,1781458240000,-500.0,0.00013698,2]
[425072914,1781458240000,-500.0,0.00013698,2]
[425072913,1781458240000,-500.0,0.00013698,2]
[425072915,1781458240000,-172.89025722,0.00013698,2]
[425072910,1781458240000,-500.0,0.00013698,2]
[425072916,1781458240000,-500.0,0.00013698,2]
[425072919,1781458240000,-328.84390757,0.00013698,2]
[425072918,1781458240000,-500.0,0.00013698,2]
[425072911,1781458240000,-500.0,0.00013698,2]
[425072922,1781458240000,-500.0,0.00013698,2]
[425072920,1781458240000,-500.0,0.00013698,2]
[425072926,1781458240000,-500.0,0.00013698,2]
[425072924,1781458240000,-500.0,0.00013698,2]
[425072923,1781458240000,-500.0,0.00013698,2]
[425072917,1781458240000,-500.0,0.00013698,2]
[425072909,1781458240000,-500.0,0.00013698,2]
[425072908,1781458240000,-500.0,0.00013698,2]
[425072925,1781458240000,-500.0,0.00013698,2]
[425072892,1781458240000,-44694.99999999,0.00013598,2]
[425072893,1781458240000,-252.76690883,0.00013598,2]
[425072894,1781458240000,-1322293.60494929,0.00013598,2]
[425072895,1781458240000,-423.65698629,0.00013601,2]
[425072900,1781458240000,-500.0,0.00013698,2]
[425072897,1781458240000,-12945.09,0.00013608,2]
[425072905,1781458240000,-500.0,0.00013698,2]
[425072901,1781458240000,-500.0,0.00013698,2]
[425072898,1781458240000,-1238.01,0.00013608,2]
[425072902,1781458240000,-500.0,0.00013698,2]
[425072903,1781458240000,-245.19472552,0.00013698,2]
[425072904,1781458240000,-500.0,0.00013698,2]
[425072907,1781458240000,-500.0,0.00013698,2]
[425072906,1781458240000,-500.0,0.00013698,2]
[425072899,1781458240000,-500.0,0.00013697,2]
[425072921,1781458240000,-500.0,0.00013698,2]
[425072896,1781458240000,-872.52,0.00013608,2]
[425072930,1781458240000,-500.0,0.00013698,2]
[425072947,1781458240000,-500.0,0.00013698,2]
[425072949,1781458240000,-500.0,0.00013698,2]
[425072950,1781458240000,-500.0,0.00013698,2]
[425072952,1781458240000,-500.0,0.00013698,2]
[425072953,1781458240000,-500.0,0.00013698,2]
[425072954,1781458240000,-500.0,0.00013698,2]
[425072946,1781458240000,-500.0,0.00013698,2]
[425072955,1781458240000,-500.0,0.00013698,2]
[425072961,1781458240000,-500.0,0.00013698,2]
[425072958,1781458240000,-793.21,0.00013698,2]
[425072959,1781458240000,-500.0,0.00013698,2]
[425072960,1781458240000,-793.21,0.00013698,2]
[425072957,1781458240000,-500.0,0.00013698,2]
[425072962,1781458240000,-793.21,0.00013698,2]
[425072956,1781458240000,-500.0,0.00013698,2]
[425072948,1781458240000,-500.0,0.00013698,2]
[425072951,1781458240000,-500.0,0.00013698,2]
[425072944,1781458240000,-500.0,0.00013698,2]
[425072929,1781458240000,-500.0,0.00013698,2]
[425072945,1781458240000,-500.0,0.00013698,2]
[425072933,1781458240000,-500.0,0.00013698,2]
[425072931,1781458240000,-243.29635154,0.00013698,2]
[425072932,1781458240000,-500.0,0.00013698,2]
[425072934,1781458240000,-500.0,0.00013698,2]
[425072935,1781458240000,-500.0,0.00013698,2]
[425072937,1781458240000,-500.0,0.00013698,2]
[425072928,1781458240000,-500.0,0.00013698,2]
[425072927,1781458240000,-591.89472531,0.00013698,2]
[425072938,1781458240000,-500.0,0.00013698,2]
[425072942,1781458240000,-500.0,0.00013698,2]
[425072939,1781458240000,-500.0,0.00013698,2]
[425072941,1781458240000,-500.0,0.00013698,2]
[425072940,1781458240000,-500.0,0.00013698,2]
[425072943,1781458240000,-500.0,0.00013698,2]
[425072936,1781458240000,-500.0,0.00013698,2]
[425072976,1781458241000,-793.21,0.00013698,2]
[425072975,1781458241000,-793.21,0.00013698,2]
[425072973,1781458241000,-793.21,0.00013698,2]
[425072974,1781458241000,-793.21,0.00013698,2]
[425072970,1781458241000,-793.21,0.00013698,2]
[425072969,1781458241000,-793.21,0.00013698,2]
[425072977,1781458241000,-793.21,0.00013698,2]
[425072972,1781458241000,-793.21,0.00013698,2]
[425072966,1781458241000,-793.21,0.00013698,2]
[425072967,1781458241000,-793.21,0.00013698,2]
[425072965,1781458241000,-793.21,0.00013698,2]
[425072963,1781458241000,-500.0,0.00013698,2]
[425072964,1781458241000,-793.21,0.00013698,2]
[425072971,1781458241000,-793.21,0.00013698,2]
[425072968,1781458241000,-793.21,0.00013698,2]
[425072979,1781458241000,-500.0,0.00013698,2]
[425072980,1781458241000,-500.0,0.00013698,2]
[425072978,1781458241000,-500.0,0.00013698,2]
[425072989,1781458241000,-500.0,0.00013698,2]
[425072994,1781458241000,-500.0,0.00013698,2]
[425072993,1781458241000,-500.0,0.00013698,2]
[425072995,1781458241000,-500.0,0.00013698,2]
[425072991,1781458241000,-500.0,0.00013698,2]
[425072990,1781458241000,-500.0,0.00013698,2]
[425072985,1781458241000,-500.0,0.00013698,2]
[425072988,1781458241000,-500.0,0.00013698,2]
[425072986,1781458241000,-500.0,0.00013698,2]
[425072984,1781458241000,-500.0,0.00013698,2]
[425072982,1781458241000,-500.0,0.00013698,2]
[425072983,1781458241000,-500.0,0.00013698,2]
[425072987,1781458241000,-428.52111193,0.00013698,2]
[425072981,1781458241000,-500.0,0.00013698,2]
[425073083,1781458242000,-500.0,0.00014865,2]
[425073084,1781458242000,-500.0,0.00014865,2]
[425073085,1781458242000,-500.0,0.00014865,2]
[425073086,1781458242000,-353.02916033,0.00014865,2]
[425073087,1781458242000,-500.0,0.00014865,2]
[425073092,1781458242000,-200.0,0.00014878,2]
[425073088,1781458242000,-5800.0,0.00014866,2]
[425073082,1781458242000,-500.0,0.00014865,2]
[425073094,1781458242000,-5800.0,0.00014883,2]
[425073090,1781458242000,-5800.0,0.00014874,2]
[425073098,1781458242000,-1355.2,0.00014899,2]
[425073096,1781458242000,-1852.0,0.00014896,5]
[425073093,1781458242000,-200.0,0.00014879,2]
[425073097,1781458242000,-5701.62695822,0.00014899,2]
[425073089,1781458242000,-200.0,0.00014873,2]
[425073095,1781458242000,-5800.0,0.00014891,2]
[425073091,1781458242000,-200.0,0.00014876,2]
[425073106,1781458243000,-2553.52904178,0.00014899,2]
[425073110,1781458243000,-1942.5042966,0.000149,2]
[425073108,1781458243000,-793.21,0.00014899,2]
[425073105,1781458243000,-389.644,0.00014899,2]
[425073111,1781458243000,-2628.31648218,0.000149,2]
[425073107,1781458243000,-500.0,0.00014899,2]
[425073109,1781458243000,-190.97745664,0.00014899,2]
[425073113,1781458244000,1000.0,0.00030137,120]
[425073118,1781458246000,-289.95402307,0.000149,2]
[425073116,1781458246000,-481.54675571,0.00013501,2]
[425073117,1781458246000,-1229.17922122,0.000149,2]
[425073129,1781458347000,-500.0,9.629e-05,2]
[425073131,1781458401000,-500.0,9.629e-05,2]
[425073132,1781458419000,336.77923081,0.00010109,7]
[425073133,1781458454000,-500.0,9.628e-05,2]
[425073134,1781458507000,-500.0,9.627e-05,2]
[425073137,1781458561000,-470.43359648,9.627e-05,2]
[425073138,1781458614000,-150.0,9.626e-05,2]
[425073139,1781458667000,-329.30351754,9.626e-05,2]
[425073141,1781458721000,-500.0,9.626e-05,2]
[425073142,1781458775000,-150.0,9.624e-05,2]
[425073148,1781458828000,-467.01269353,9.625e-05,2]
[425073151,1781458980000,-150.0,9.623e-05,2]
[425073152,1781459034000,-214.62893843,9.623e-05,2]
[425073153,1781459088000,-150.0,9.334e-05,2]
[425073154,1781459141000,-150.0,9.621e-05,2]
[425073155,1781459195000,-171.82,8.71e-05,2]
[425073156,1781459248000,-500.0,9.621e-05,2]
[425073157,1781459312000,-150.0,9.62e-05,2]
[425073158,1781459330000,-500.0,9.621e-05,2]
[425073159,1781459365000,-500.0,9.62e-05,2]
[425073160,1781459418000,-276.90888547,9.62e-05,2]
[425073164,1781459431000,-42.32441594,9.62e-05,2]
[425073165,1781459431000,-107.91584097,9.62e-05,2]
[425073168,1781459431000,-185.37340002,9.62e-05,2]
[425073167,1781459431000,-185.45394081,9.62e-05,2]
[425073166,1781459431000,-500.0,9.62e-05,2]
[425073169,1781459431000,-210.05100134,9.62e-05,2]